Cogmind - Beta 14 @@@ ROGUE MODE // 2024.08.25 @ 22:38:36 Player: Dzuchun Result: Destroyed by Y-45 Defender with Beam Rifle Performance ------------- Evolutions (0) 0 Regions Visited (2) 400 Robots Destroyed (42) 210 Value Destroyed (740) 740 Prototype IDs (0) 0 Alien Tech Used (0) 0 Bonus (0) 0 TOTAL SCORE: 1350 Bonus ------- None Cogmind --------- Core Integrity 0/250 Matter 191/300 Energy 65/100 System Corruption 3% Temperature Cool (9) Movement Core (350) Ox6 Location -10/Mines Parts ------- > --- POWER (1) -------- (None) > --- PROPULSION (2) --- (None) > --- UTILITY (2) ------ Large Storage Unit Core Shielding > --- WEAPON (2) ------- (None) > --- INVENTORY (15) --- Light Nuclear Core Aluminum Leg Aluminum Leg Wheel Large Storage Unit Medium Matter Pod (100) Weight Redist. System Visual Processing Unit Improved Terrain Scanner Seismic Detector Propulsion Shielding Rocket Launcher Mining Claw Peak State ------------ > --- POWER ------------ Ion Engine > --- PROPULSION ------- Aluminum Leg Aluminum Leg > --- UTILITY ---------- Large Storage Unit Signal Interpreter > --- WEAPON ----------- EM Shotgun EM Shotgun > --- INVENTORY -------- Ion Engine Wheel Wheel Wheel Large Storage Unit Medium Matter Pod Weight Redist. System Improved Terrain Scanner Propulsion Shielding EM Shotgun EM Shotgun Rocket Launcher Rocket Launcher Mining Claw [Rating: 11] Favorites ----------- Power Ion Engine Engine Ion Engine Power Core Light Nuclear Core Propulsion Aluminum Leg Leg Aluminum Leg Wheel Compact Wheel Utility Signal Interpreter Device Seismic Detector Storage Large Storage Unit Processor Signal Interpreter Protection Core Shielding Weapon EM Shotgun Energy Gun EM Shotgun Ballistic Gun Light Assault Rifle Launcher Rocket Launcher Build | -11 -10 -10 ------- Run | Yrd Mat Min Slots Evolved . | . . . Power . | . . . Propulsion . | . . . Utility . | . . . Weapon . | . . . Parts Attached 33 | 8 23 2 Power 4 | 1 3 . Engine 3 | 1 2 . Core 1 | . 1 . Reactor . | . . . Propulsion 10 | 2 8 . Treads . | . . . Leg 8 | . 8 . Wheel 2 | 2 . . Hover . | . . . Flight . | . . . Utility 8 | 3 3 2 Device 2 | 2 . . Storage 4 | 1 2 1 Processor 1 | . 1 . Hackware . | . . . Protection 1 | . . 1 Artifact . | . . . Weapon 11 | 2 9 . Energy Gun 6 | . 6 . Energy Cannon . | . . . Ballistic Gun 4 | 2 2 . Ballistic Cannon . | . . . Launcher 1 | . 1 . Special Weapon . | . . . Impact Weapon . | . . . Slashing Weapon . | . . . Piercing Weapon . | . . . Special Melee Weapon . | . . . Unidentified Prototypes . | . . . Parts Lost 9 | . 5 4 Power 1 | . 1 . Propulsion 2 | . . 2 Utility 1 | . 1 . Weapon 5 | . 3 2 Highest Loss Streak 4 | . 2 4 To Critical Strikes . | . . . Average Slot Usage (%) 98 | . 98 78 Engine 12 | . 13 . Leg 23 | . 23 28 Wheel 4 | . 4 . Device 1 | . 1 . Storage 13 | . 13 14 Processor 12 | . 12 14 Energy Gun 15 | . 15 7 Ballistic Gun 11 | . 12 . Peak Build Rating 11 | 9 11 10 Average Rating 9 | 5 9 8 On Entrance 6 | . 9 10 Naked Turns . | . . . Heaviest Build 31 | 12 31 27 Greatest Support 26 | 26 26 20 Greatest Overweight (x) 1 | . 1 1 Average Overweight (x) . | . . 1 Largest Inventory Capacity 15 | 8 15 15 Average Capacity 12 | 7 12 15 Most Carried 15 | 4 15 14 Average Carried 10 | 1 11 13 Final Capacity 15 | 5 15 15 Final Carried 14 | 4 14 13 Class Distribution -------------------- 67% | Scavenger-Mutant 32% | Mutant Dominant Class ---------------- Scavenger-Mutant | -10/Materials Mutant | -10/Mines Resources | -11 -10 -10 ----------- Run | Yrd Mat Min Matter Collected 928 | 352 576 . Remotely . | . . . Salvage Created 1215 | 177 1004 34 Parts 75 | 12 62 1 Haulers Intercepted 2 | . 2 . Recyclers Shooed 1 | . 1 . Parts Field Recycled . | . . . Retrieved Matter . | . . . Parts Self-Destructed . | . . . Prevented . | . . . Kills | -11 -10 -10 ------- Run | Yrd Mat Min Combat Hostiles Destroyed 25 | . 24 1 Guns 20 | . 20 . AOE 5 | . 4 1 Classes Destroyed 8 | 3 4 1 Worker 4 | 2 2 . Tunneler 6 | 4 2 . Hauler 2 | . 2 . Recycler 2 | 1 1 . Watcher 3 | . 3 . Swarmer 11 | . 11 . Grunt 13 | . 13 . Sentry 1 | . . 1 Best Kill Streak 5 | 5 4 1 Combat Bots Only 3 | . 3 1 Max Kills in Single Turn 2 | 1 2 1 Gunslinging . | . . . Exploded 2 | . 2 1 Melee . | . . . Uniques/NPCs Destroyed . | . . . Combat | -11 -10 -10 -------- Run | Yrd Mat Min Hostile Shots Fired 164 | . 135 29 Missed 45 | . 36 9 Damage Taken 1473 | . 1089 384 Core 261 | . 122 139 Absorbed by Shields . | . . . Redirected to Shielding 3 | . . 3 Regen/Repaired (Parts) 106 | . 106 . Core Remaining (%) 100 | 100 . . Volleys Fired 129 | 18 102 9 Largest 2 | 2 2 2 Hottest 90 | 40 90 78 Shots Fired 244 | 36 197 11 Gun 235 | 36 197 2 Cannon . | . . . Launcher 9 | . . 9 Special . | . . . Kinetic 176 | 36 140 . Thermal 10 | . 10 . Explosive 9 | . . 9 Electromagnetic 49 | . 47 2 Robot Hit Streak 11 | 6 11 5 Robot Miss Streak 5 | 1 5 2 Penetration Max . | . . . Secondary Targets . | . . . Shots Hit Robots 162 | 25 128 9 Core Hits 71 | 9 59 3 Critical Kills . | . . . Critical Parts Destroyed . | . . . Critical Strikes . | . . . Melee Attacks . | . . . Impact . | . . . Slashing . | . . . Piercing . | . . . Sneak Attacks . | . . . Combat Hostiles . | . . . Follow-up Attacks . | . . . Damage Inflicted 2066 | 267 1557 242 Guns 1650 | 267 1367 16 Cannons . | . . . Explosions 360 | . 134 226 Melee . | . . . Ramming 56 | . 56 . Kinetic 1070 | 267 803 . Thermal 235 | . 235 . Explosive 226 | . . 226 Electromagnetic 479 | . 463 16 Impact . | . . . Slashing . | . . . Piercing . | . . . Highest Corruption 3 | . 3 3 Average Corruption 2 | . 2 3 Corruption Purged . | . . . Corruption Blocked . | . . . Effects 25 | . 24 1 Message Errors 4 | . 4 . Matter Fused 8 | . 8 . Heat Flow Errors 1 | . 1 . Energy Discharges 2 | . 2 . Data Loss (minor) 6 | . 5 1 Alerts 4 | . 4 . Overload Shots . | . . . Overflow Damage 2 | . . 2 Projectiles . | . . . Explosions 2 | . . 2 Melee . | . . . Knockbacks . | . . . Impact . | . . . Kinetic . | . . . Secondary . | . . . Self-Inflicted Damage 176 | . 88 88 Shots 7 | . 3 4 Rammed . | . . . Targets Rammed 10 | . 10 . Kicked 10 | . 10 . Crushed . | . . . Highest Temperature 142 | . 142 39 Average Temperature 28 | . 29 12 Received Heat Transfer 492 | . 357 135 Siege Activations . | . . . Robots Corrupted . | . . . Combat Hostiles . | . . . Parts Fried 1 | . 1 . Impact Corruptions . | . . . Robots Melted . | . . . Combat Hostiles . | . . . Parts Melted . | . . . Heat Transferred 375 | . 375 . Parts Sabotaged . | . . . Parts Stolen . | . . . Parts Stripped . | . . . Power Chain Reactions 3 | . 3 . Alert | -11 -10 -10 ------- Run | Yrd Mat Min Peak Influence 272 | 35 272 153 Initial 105 | . 22 105 Average 128 | 13 134 126 Maximum Alert Level 1 | . 1 . Low Security (%) 80 | 100 79 100 Level 1 19 | . 20 . Level 2 . | . . . Level 3 . | . . . Level 4 . | . . . Level 5 . | . . . High Security . | . . . Max Security . | . . . Squads Dispatched 5 | . 5 . Investigation 3 | . 3 . Extermination . | . . . Reinforcement 2 | . 2 . Assault . | . . . Garrison . | . . . Intercept . | . . . Searches Triggered . | . . . Construction Impeded . | . . . Haulers Reinforced . | . . . Active Scanning Responses . | . . . Cargo Convoy Interrupts . | . . . Stealth | -11 -10 -10 --------- Run | Yrd Mat Min Distress Signals 2 | . 2 . Communications Jammed . | . . . Distress Signals . | . . . Times Spotted 40 | . 38 2 Peak Tracking Total 4 | . 4 2 Tactical Retreats 2 | . 2 . Traps | -11 -10 -10 ------- Run | Yrd Mat Min Traps Triggered 4 | . 4 . Indirectly . | . . . Trap Hack Attempts . | . . . Triggered . | . . . Disarmed . | . . . Reprogrammed . | . . . Reused . | . . . Traps Extracted . | . . . Installed . | . . . Triggered . | . . . Machines | -11 -10 -10 ---------- Run | Yrd Mat Min Machines Disabled 3 | . 2 1 Max in Single Turn 1 | . 1 1 Machines Repaired . | . . . Machines Dismantled . | . . . Machines Sabotaged . | . . . Overloaded Fab Kills . | . . . Hacking | -11 -10 -10 --------- Run | Yrd Mat Min Machines Accessed 8 | . 8 . Terminals 7 | . 7 . Fabricators . | . . . Repair Stations 1 | . 1 . Recycling Units . | . . . Scanalyzers . | . . . Garrison Access . | . . . Total Hacks 22 | . 22 . Successful 17 | . 17 . Failed 5 | . 5 . Catastrophic . | . . . Database Lockouts . | . . . Manual 18 | . 18 . Terminals 18 | . 18 . Fabricators . | . . . Repair Stations 4 | . 4 . Recycling Units . | . . . Scanalyzers . | . . . Garrison Access . | . . . Terminal Hacks 6 | . 6 . Locate Traps 6 | . 6 . Fabricator Hacks . | . . . Repair Station Hacks 4 | . 4 . Scan Component 2 | . 2 . Repair 2 | . 2 . Recycling Unit Hacks . | . . . Scanalyzer . | . . . Garrison Access Hacks . | . . . Unauthorized Hacks 7 | . 7 . Terminals 7 | . 7 . Botnet 7 | . 7 . Fabricators . | . . . Repair Stations . | . . . Recycling Units . | . . . Scanalyzers . | . . . Garrison Access . | . . . Data Cores Recovered . | . . . Used . | . . . Hacking Detections 6 | . 6 . Full Trace Events 1 | . 1 . Feedback Events . | . . . Feedback Blocked . | . . . Robot Schematics Acquired . | . . . Robots Built . | . . . Authchips . | . . . Time . | . . . Total Robot Build Rating . | . . . Part Schematics Acquired . | . . . Parts Built . | . . . Authchips . | . . . Time . | . . . Total Part Build Rating . | . . . Parts Repaired 2 | . 2 . Time 52 | . 52 . Parts Recycled . | . . . Recycled Matter . | . . . Retrieved Matter . | . . . Retrieved Components . | . . . Parts Scanalyzed . | . . . Part Schematics Acquired . | . . . Parts Damaged . | . . . Bothacking | -11 -10 -10 ------------ Run | Yrd Mat Min Used RIF Installer . | . . . Robots Hacked . | . . . Non-combat . | . . . Combat . | . . . Robot Hacks Applied . | . . . Relay Couplers Released . | . . . Fabnet Peak Effective % . | . . . Robots Rewired . | . . . Allies Hacked . | . . . Hacks Repelled . | . . . Allies | -11 -10 -10 -------- Run | Yrd Mat Min Total Allies . | . . . Largest Group . | . . . Highest-Rated Group . | . . . Highest-Rated Ally . | . . . Total Orders . | . . . Ally Attacks . | . . . Total Damage . | . . . Kills . | . . . Allies Corrupted . | . . . Allies Melted . | . . . Intel | -11 -10 -10 ------- Run | Yrd Mat Min Robot Analysis Total . | . . . Derelict Logs Recovered . | . . . Drone Launches . | . . . Drone Recoveries . | . . . Exploration | -11 -10 -10 ------------- Run | Yrd Mat Min Turns Passed 2318 | 116 2154 48 Spaces Moved 1137 | 58 1066 13 Core 4 | 4 . . Treads . | . . . Legs 904 | . 891 13 Wheels 229 | 54 175 . Hover . | . . . Flight . | . . . Fastest Speed 50 | 50 90 190 Average Speed 151 | 86 154 190 Slowest Speed 190 | 90 190 190 Overloaded Moves . | . . . Propulsion Burnouts . | . . . Robots Hopped . | . . . Cave-ins Triggered . | . . . Exploration Rate (%) 36 | 5 93 10 Regions Visited 2 Branch Regions 1 Pre-discovered Areas . | . . . Known Exits Taken 1 | . 1 . Unknown Exits Taken 1 | 1 . . Scrap Searched . | . . . Spaces Dug . | . . . Terrain Destroyed 50 | . 11 39 Melee . | . . . Projectile . | . . . AOE 50 | . 11 39 Terrain Rammed . | . . . Walls Destroyed . | . . . Machines Disabled . | . . . Actions | -11 -10 -10 --------- Run | Yrd Mat Min Total 1498 | 87 1386 25 Wait 153 | . 152 1 Move 1135 | 57 1065 13 Hop . | . . . Pick Up 23 | 3 20 . Fast Attach 11 | 8 3 . Attach 4 | . 4 . Detach 1 | 1 . . Swap 18 | . 16 2 Drop 14 | . 14 . Fire 129 | 18 102 9 Melee . | . . . Ram . | . . . Kick 10 | . 10 . Crush . | . . . Escape Stasis . | . . . Rewire . | . . . Trap . | . . . Miscellaneous . | . . . Route ------- -11/Scrapyard -10/Materials (discovered 4 exits: *Mat x3 / *Min) -10/Mines History --------- Turn | Location | Event 20 | -11/Scrapyard | Discovered new exit (range 16) 117 | -11/Scrapyard | Entered Materials 290 | -10/Materials | Discovered new exit (range 8) 317 | -10/Materials | Build established: Mutant 452 | -10/Materials | Identified exit to Materials 534 | -10/Materials | Discovered new exit (range 14) 566 | -10/Materials | Identified exit to Mines 683 | -10/Materials | Discovered exit to Materials (range 5) 924 | -10/Materials | Build established: Scavenger-Mutant 1170 | -10/Materials | Discovered exit to Materials (range 11) 1384 | -10/Materials | Repaired Aluminum Leg 1411 | -10/Materials | Repaired Aluminum Leg 2271 | -10/Materials | Entered Mines 2292 | -10/Mines | Core integrity fell below 50% 2311 | -10/Mines | Core integrity fell below 20% 2319 | -10/Mines | Destroyed by Y-45 Defender with Beam Rifle Last Messages --------------- 02235_ U-05 Engineer builds a Wall. LOCATION=MINES GOAL=ESCAPE Something is scanning the area. 02277_ System corrupted: Component data lost. 02282_ Critical hit (Burn: +37). 02299_ EM Shotgun destroyed. 02299_ Destroyed EM Shotgun. 02302_ Y-45 Defender destroyed. 02308_ Machine disabled. 02310_ Aluminum Leg destroyed. 02310_ Destroyed Aluminum Leg. 02311_ The unstable cave ceiling collapses. 02314_ Discarded Signal Interpreter. Note that some effects don't stack, e.g. attaching both Lrg. Storage Unit and Lrg. Storage Unit does not combine the two effects (all such effects are marked ). 02315_ The unstable cave ceiling collapses. 02316_ Aluminum Leg destroyed. 02316_ Rocket Launcher destroyed. Map ----- +----------------------------------------------------+ | ????????????????????????????????????????????? | | ????????????????????????????????????????????? | | ????????????????????????????????????????????? | | ????????????????????????????????????????????? | | ????????????????????????????????????????????? | | ????????????????????????????????????????????? | | ????????????????????????????????????????????? | | ????????????????????????????????????????????? | | ????????????????????????????????????????????? | | ????????????????????????????????????????????? | | ????????????????????????????????????????????? | | ????????????????????????????????????????????? | | ????????????????????????????????????????????? | | ????????????????????????????????????????????? | | ????????????????????????????????????????????? | | ????????????????????????????????????????????? | | ?????????##?????????????????????????????????? | | ????????## #????????????????????????????????? | | ????????# ##??????????????????????????????? | | ?????????# ##????????????????????????????? | | ??????????# #####????????????????????????? | | ??????????# ###?????????????????????? | | ????????# ## # ##????????????????????? | | ????????# ##########???????????? | | ????????# [ ????????? | | ????????# ! @ ????????? | | ????????# Y #######???????????????? | | ???????# #?????????????????????? | | ???????## # ###?????????????????????? | | ????????#"/ ##????????????????????????? | | ????????##[| #????????????????????????? | | ?????????#### #???????????????????????? | | ????????????# #???????????????????????? | | ??????????? ## #??????????????????????? | | ?????????? ?# ?????????????????????? | | ?????????# #?# # ????????????????????? | | ????????? ??# ### ???????????????????? | | ????????? ??? #??# ???????????????????? | | ?????????? ??? #???## ???????????????????? | | ??????????????####??????????????????????????? | | ????????????????????????????????????????????? | | ????????????????????????????????????????????? | | ????????????????????????????????????????????? | | ????????????????????????????????????????????? | | ????????????????????????????????????????????? | | ????????????????????????????????????????????? | | ????????????????????????????????????????????? | | ????????????????????????????????????????????? | | ????????????????????????????????????????????? | | ????????????????????????????????????????????? | +----------------------------------------------------+ Best States ------------- Heat Dissipation 25 Energy Generation 14 Energy Capacity 250 Matter Stores 300 Matter Capacity 300 Sight Range 16 Terrain Scan Range 16 Terrain Scan Density 10 Evasion (%) 55 Item Schematics ----------------- None Robot Schematics ------------------ None Fabricated ------------ Nothing Alien Tech Used ----------------- None Achievements -------------- None Challenges ------------ None Game ------ Seed ChainGravmagFocus Manual? 0 Play Time 00:22:12 Cumulative 15.0 hours Start 2024.08.25 @ 21:36:24 End 2024.08.25 @ 22:38:36 Sessions 1 Manual Loads 0 Difficulty Rogue Special Mode None Game No. 23 Rogue 23 Adventurer 0 Explorer 0 Win Type - Total 0 Types 0/0/0/0/0/0/0/0/0 Lore% 7 Gallery% 15 Achievement% 16 Wizard Run 0 Options --------- Layout 0 ASCII 0 Keyboard 1 Movement Vi Keybinds 0 Fullscreen 1 Font 18/X11Bold Map View 76x50 Zoom Use 0% Tactical HUD 1 Map Filters NONE Filters NONE Steam 1 RUN: 24180309-de72-42e0-a9e4-6a4d2dd3b30b